fUST/lending_fUST_20241021
["ID","MTS","AMOUNT","RATE_DAILY","PERIOD"]
[340569779,1729503051123,-338.99084043,0.00016438,2]
[340569780,1729503051134,-2260.42,0.00016438,2]
[340569781,1729503051145,-500.0,0.00016438,2]
[340569782,1729503051157,-644.91,0.00016438,2]
[340569783,1729503051168,-500.0,0.00016438,2]
[340569784,1729503051181,-650.43,0.00016438,2]
[340569785,1729503051192,-500.0,0.00016438,2]
[340569786,1729503051203,-508.9079651,0.00016438,2]
[340569787,1729503051214,-500.0,0.00016438,2]
[340569788,1729503051226,-500.0,0.00016438,2]
[340569789,1729503051237,-1845.52,0.00016438,2]
[340569790,1729503051248,-500.0,0.00016438,2]
[340569791,1729503051260,-1838.23,0.00016438,2]
[340569792,1729503051271,-749.99,0.00016438,2]
[340569793,1729503051281,-1040.62,0.00016438,2]
[340569794,1729503051292,-500.0,0.00016438,2]
[340569795,1729503051303,-500.0,0.00016438,2]
[340569796,1729503051314,-500.0,0.00016438,2]
[340569797,1729503051325,-1000.0,0.00016602,2]
[340569798,1729503051336,-1439.31576493,0.00016673,2]
[340569799,1729503051348,-87250.6788418,0.00016702,2]
[340569800,1729503051359,-444324.661195,0.00016702,2]
[340569801,1729503051371,-505.11202141,0.00016712,2]
[340569802,1729503051382,-500.0,0.00016712,2]
[340569803,1729503051392,-500.0,0.00016712,2]
[340569804,1729503051404,-896.67,0.00016712,2]
[340569805,1729503051414,-500.0,0.00016712,2]
[340569806,1729503051426,-1541.31,0.00016712,2]
[340569807,1729503051437,-500.0,0.00016712,2]
[340569808,1729503051447,-500.0,0.00016712,2]
[340569809,1729503051458,-500.0,0.00016712,2]
[340569810,1729503051470,-664.96,0.00016712,2]
[340569811,1729503051481,-500.0,0.00016712,2]
[340569812,1729503051491,-500.0,0.00016712,2]
[340569813,1729503051502,-1782.49,0.00016712,2]
[340569814,1729503051513,-1138.17,0.00016712,2]
[340569815,1729503051523,-541.01294346,0.00016712,2]
[340569816,1729503051541,-822.36,0.00016712,2]
[340569817,1729503051928,-500.0,0.00016712,2]
[340569818,1729503051949,-3201.56,0.00016712,2]
[340569819,1729503051970,-1923.96,0.00016712,2]
[340569820,1729503051979,-707.91,0.00016712,2]
[340569821,1729503051988,-500.0,0.00016712,2]
[340569822,1729503051997,-500.0,0.00016712,2]
[340569823,1729503052007,-753.67,0.00016712,2]
[340569824,1729503052017,-500.0,0.00016712,2]
[340569825,1729503052026,-500.0,0.00016712,2]
[340569826,1729503052036,-1668.46,0.00016712,2]
[340569827,1729503052045,-500.0,0.00016712,2]
[340569828,1729503052055,-500.0,0.00016712,2]
[340569829,1729503052064,-500.0,0.00016712,2]
[340569830,1729503052074,-500.0,0.00016712,2]
[340569831,1729503052084,-2276.44,0.00016712,2]
[340569832,1729503052093,-500.0,0.00016712,2]
[340569833,1729503052103,-500.0,0.00016712,2]
[340569834,1729503052112,-1567.98,0.00016712,2]
[340569835,1729503052122,-500.0,0.00016712,2]
[340569836,1729503052131,-1183.81,0.00016712,2]
[340569837,1729503052140,-500.0,0.00016712,2]
[340569838,1729503052150,-500.0,0.00016712,2]
[340569839,1729503052159,-500.0,0.00016712,2]
[340569840,1729503052169,-1034.69,0.00016712,2]
[340569841,1729503052182,-3561.51,0.00016712,2]
[340569842,1729503052192,-541.63004014,0.00016712,2]
[340569843,1729503052201,-500.0,0.00016712,2]
[340569844,1729503052210,-919.96,0.00016712,2]
[340569845,1729503052220,-920.74,0.00016712,2]
[340569846,1729503052230,-497.78967187,0.00016712,2]
[340569847,1729503052240,-500.0,0.00016712,2]
[340569848,1729503052250,-500.0,0.00016712,2]
[340569849,1729503052262,-2579.12,0.00016712,2]
[340569850,1729503052272,-2401.43,0.00016712,2]
[340569851,1729503052281,-3165.19,0.00016712,2]
[340569852,1729503052291,-1277.13,0.00016712,2]
[340569853,1729503052300,-500.0,0.00016712,2]
[340569854,1729503052309,-471.76501859,0.00016712,2]
[340569855,1729503052318,-500.0,0.00016712,2]
[340569856,1729503052328,-500.0,0.00016712,2]
[340569857,1729503052337,-500.0,0.00016712,2]
[340569858,1729503052346,-500.0,0.00016712,2]
[340569859,1729503052356,-500.0,0.00016712,2]
[340569860,1729503052365,-533.11011294,0.00016712,2]
[340569861,1729503052374,-2083.93,0.00016712,2]
[340569862,1729503052384,-2231.33,0.00016712,2]
[340569863,1729503052393,-1223.97,0.00016712,2]
[340569864,1729503052403,-500.0,0.00016712,2]
[340569865,1729503052413,-500.0,0.00016712,2]
[340569866,1729503052422,-970.01,0.00016712,2]
[340569867,1729503052432,-500.0,0.00016712,2]
[340569868,1729503052441,-500.0,0.00016712,2]
[340569869,1729503052451,-500.0,0.00016712,2]
[340569870,1729503052460,-500.0,0.00016712,2]
[340569871,1729503052469,-1838.14,0.00016712,2]
[340569872,1729503052483,-215.97033511,0.00016712,2]
[340569873,1729503052492,-1005.26,0.00016712,2]
[340569874,1729503052502,-1998.2,0.00016712,2]
[340569875,1729503052511,-500.0,0.00016712,2]
[340569876,1729503052521,-500.0,0.00016712,2]
[340569877,1729503052531,-500.0,0.00016712,2]
[340569878,1729503052540,-500.0,0.00016712,2]
[340569879,1729503052550,-500.0,0.00016712,2]
[340569880,1729503052559,-500.0,0.00016712,2]
[340569881,1729503052569,-500.0,0.00016712,2]
[340569882,1729503052580,-500.0,0.00016712,2]
[340569883,1729503052590,-1214.38,0.00016712,2]
[340569884,1729503052600,-609.63,0.00016712,2]
[340569885,1729503052609,-500.0,0.00016712,2]
[340569886,1729503052619,-500.0,0.00016712,2]
[340569887,1729503052628,-1960.9,0.00016712,2]
[340569888,1729503052637,-500.0,0.00016712,2]
[340569889,1729503052647,-500.0,0.00016712,2]
[340569890,1729503052657,-587.65423772,0.00016712,2]
[340569891,1729503052666,-500.0,0.00016712,2]
[340569892,1729503052676,-1199.08,0.00016712,2]
[340569893,1729503052686,-500.0,0.00016712,2]
[340569894,1729503052695,-2048.61,0.00016712,2]
[340569895,1729503052705,-1846.49,0.00016712,2]
[340569896,1729503052714,-1280.59,0.00016712,2]
[340569897,1729503052723,-500.0,0.00016712,2]
[340569898,1729503052733,-500.0,0.00016712,2]
[340569899,1729503052742,-500.0,0.00016712,2]
[340569900,1729503052751,-531.75231897,0.00016712,2]
[340569901,1729503052761,-500.0,0.00016712,2]
[340569902,1729503052770,-500.0,0.00016712,2]
[340569903,1729503052779,-1902.87,0.00016712,2]
[340569904,1729503052789,-2763.58,0.00016712,2]
[340569905,1729503052798,-500.0,0.00016712,2]
[340569906,1729503052808,-500.0,0.00016712,2]
[340569907,1729503052817,-1016.88,0.00016712,2]
[340569908,1729503052828,-2223.77,0.00016712,2]
[340569909,1729503052837,-428.48039697,0.00016712,2]
[340569910,1729503052847,-500.0,0.00016712,2]
[340569911,1729503052856,-2995.66,0.00016712,2]
[340569912,1729503052865,-500.0,0.00016712,2]
[340569913,1729503052875,-2141.85,0.00016712,2]
[340569914,1729503052884,-500.0,0.00016712,2]
[340569915,1729503052895,-1423.5,0.00016712,2]
[340569916,1729503052904,-500.0,0.00016712,2]
[340569917,1729503052914,-500.0,0.00016712,2]
[340569918,1729503052923,-500.0,0.00016712,2]
[340569919,1729503052933,-695.47,0.00016712,2]
[340569920,1729503052943,-2053.73,0.00016712,2]
[340569921,1729503052953,-500.0,0.00016712,2]
[340569922,1729503052964,-879.65,0.00016712,2]
[340569923,1729503052974,-1830.51,0.00016712,2]
[340569924,1729503052984,-500.0,0.00016712,2]
[340569925,1729503052994,-500.0,0.00016712,2]
[340569926,1729503053004,-1597.4,0.00016712,2]
[340569927,1729503053015,-606.23168963,0.00016712,2]
[340569928,1729503053025,-500.0,0.00016712,2]
[340569929,1729503053035,-1006.47,0.00016712,2]
[340569930,1729503053045,-500.0,0.00016712,2]
[340569931,1729503053056,-500.0,0.00016712,2]
[340569932,1729503053065,-500.0,0.00016712,2]
[340569933,1729503053075,-500.0,0.00016712,2]
[340569934,1729503053085,-500.0,0.00016712,2]
[340569935,1729503053095,-500.0,0.00016712,2]
[340569936,1729503053104,-500.0,0.00016712,2]
[340569937,1729503053114,-500.0,0.00016712,2]
[340569938,1729503053124,-1000.0,0.00016712,2]
[340569939,1729503053134,-1315.44,0.00016712,2]
[340569940,1729503053144,-500.0,0.00016712,2]
[340569941,1729503053153,-1279.8,0.00016712,2]
[340569942,1729503053163,-500.0,0.00016712,2]
[340569943,1729503053175,-500.0,0.00016712,2]
[340569944,1729503053188,-500.0,0.00016712,2]
[340569945,1729503053198,-914.69,0.00016712,2]
[340569946,1729503053208,-1872.38,0.00016712,2]
[340569947,1729503053220,-1359.76,0.00016712,2]
[340569948,1729503053230,-500.0,0.00016712,2]
[340569949,1729503053240,-500.0,0.00016712,2]
[340569950,1729503053251,-2256.57,0.00016712,2]
[340569951,1729503053264,-2432.22,0.00016712,2]
[340569952,1729503053274,-500.0,0.00016712,2]
[340569953,1729503053284,-500.0,0.00016712,2]
[340569954,1729503053294,-500.0,0.00016712,2]
[340569955,1729503053304,-500.0,0.00016712,2]
[340569956,1729503053314,-554.4,0.00016712,2]
[340569957,1729503053323,-1209.5,0.00016712,2]
[340569958,1729503053333,-4383.87,0.00016712,2]
[340569959,1729503053343,-500.0,0.00016712,2]
[340569960,1729503053352,-2735.37,0.00016712,2]
[340569961,1729503053362,-500.0,0.00016712,2]
[340569962,1729503053372,-1212.07,0.00016712,2]
[340569963,1729503053381,-876.84,0.00016712,2]
[340569964,1729503053391,-500.0,0.00016712,2]
[340569965,1729503053401,-518.0038246,0.00016712,2]
[340569966,1729503053411,-500.0,0.00016712,2]
[340569967,1729503053422,-1442.37,0.00016712,2]
[340569968,1729503053432,-500.0,0.00016712,2]
[340569969,1729503053442,-548.36,0.00016712,2]
[340569970,1729503053451,-2794.25,0.00016712,2]
[340569971,1729503053461,-1621.62,0.00016712,2]
[340569972,1729503053471,-500.0,0.00016712,2]
[340569973,1729503053481,-3835.4,0.00016712,2]
[340569974,1729503053490,-830.7,0.00016712,2]
[340569975,1729503053500,-1115.16,0.00016712,2]
[340569976,1729503053510,-507.9,0.00016712,2]
[340569977,1729503053520,-500.0,0.00016712,2]
[340569978,1729503053530,-1246.78,0.00016712,2]
[340569979,1729503053539,-500.0,0.00016712,2]
[340569980,1729503053549,-1810.47,0.00016712,2]
[340569981,1729503053559,-541.74144373,0.00016712,2]
[340569982,1729503053568,-500.0,0.00016712,2]
[340569983,1729503053578,-500.0,0.00016712,2]
[340569984,1729503053595,-500.0,0.00016712,2]
[340569985,1729503053605,-500.0,0.00016712,2]
[340569986,1729503053615,-831.66,0.00016712,2]
[340569987,1729503053625,-500.0,0.00016712,2]
[340569988,1729503053635,-500.0,0.00016712,2]
[340569989,1729503053644,-500.0,0.00016712,2]
[340569990,1729503053654,-500.0,0.00016712,2]
[340569991,1729503053664,-988.8,0.00016712,2]
[340569992,1729503053674,-1253.03,0.00016712,2]
[340569993,1729503053683,-500.0,0.00016712,2]
[340569994,1729503053694,-500.0,0.00016712,2]
[340569995,1729503053705,-500.0,0.00016712,2]
[340569996,1729503053715,-500.0,0.00016712,2]
[340569997,1729503053724,-500.0,0.00016712,2]
[340569998,1729503053734,-670.3,0.00016712,2]
[340569999,1729503053743,-1024.69,0.00016712,2]
[340570000,1729503053753,-500.0,0.00016712,2]
[340570001,1729503053762,-500.0,0.00016712,2]
[340570002,1729503053773,-1612.75,0.00016712,2]
[340570003,1729503053783,-3366.73,0.00016712,2]
[340570004,1729503053792,-500.0,0.00016712,2]
[340570005,1729503053802,-500.0,0.00016712,2]
[340570006,1729503053811,-500.0,0.00016712,2]
[340570007,1729503053821,-500.0,0.00016712,2]
[340570008,1729503053832,-1152.63,0.00016712,2]
[340570009,1729503053842,-500.0,0.00016712,2]
[340570010,1729503053851,-1070.34,0.00016712,2]
[340570011,1729503053861,-500.0,0.00016712,2]
[340570012,1729503053871,-500.0,0.00016712,2]
[340570013,1729503053882,-500.0,0.00016712,2]
[340570014,1729503053892,-500.0,0.00016712,2]
[340570015,1729503053902,-500.0,0.00016712,2]
[340570016,1729503053911,-1253.82,0.00016712,2]
[340570017,1729503053921,-500.0,0.00016712,2]
[340570018,1729503053931,-976.94,0.00016712,2]
[340570019,1729503053941,-500.0,0.00016712,2]
[340570020,1729503053951,-1358.77,0.00016712,2]
[340570021,1729503053960,-500.0,0.00016712,2]
[340570022,1729503053970,-738.82,0.00016712,2]
[340570023,1729503053979,-1726.48,0.00016712,2]
[340570024,1729503053989,-500.0,0.00016712,2]
[340570025,1729503053998,-500.0,0.00016712,2]
[340570026,1729503054009,-1345.58,0.00016712,2]
[340570027,1729503054019,-1056.61,0.00016712,2]
[340570028,1729503054029,-579.94167964,0.00016712,2]
[340570029,1729503054039,-500.0,0.00016712,2]
[340570030,1729503054048,-1830.24,0.00016712,2]
[340570031,1729503054058,-500.0,0.00016712,2]
[340570032,1729503054067,-500.0,0.00016712,2]
[340570033,1729503054076,-500.0,0.00016712,2]
[340570034,1729503054087,-701.42,0.00016712,2]
[340570035,1729503054096,-500.0,0.00016712,2]
[340570036,1729503054106,-1470.66,0.00016712,2]
[340570037,1729503054115,-750.06,0.00016712,2]
[340570038,1729503054125,-500.0,0.00016712,2]
[340570039,1729503054135,-1658.61,0.00016712,2]
[340570040,1729503054145,-500.0,0.00016712,2]
[340570041,1729503054155,-1462.79,0.00016712,2]
[340570042,1729503054164,-500.0,0.00016712,2]
[340570043,1729503054175,-982.97,0.00016712,2]
[340570044,1729503054188,-500.0,0.00016712,2]
[340570046,1729503054198,-500.0,0.00016712,2]
[340570047,1729503054207,-500.0,0.00016712,2]
[340570048,1729503054219,-4790.94,0.00016712,2]
[340570049,1729503054228,-2181.0,0.00016712,2]
[340570050,1729503054238,-500.0,0.00016712,2]
[340570051,1729503054248,-500.0,0.00016712,2]
[340570052,1729503054257,-500.0,0.00016712,2]
[340570053,1729503054269,-1212.02,0.00016712,2]
[340570054,1729503054279,-1801.67,0.00016712,2]
[340570055,1729503054300,-500.0,0.00016712,2]
[340570056,1729503054312,-822.56,0.00016712,2]
[340570057,1729503054322,-3380.87,0.00016712,2]
[340570058,1729503054333,-500.0,0.00016712,2]
[340570059,1729503054342,-500.0,0.00016712,2]
[340570060,1729503054353,-1751.38,0.00016712,2]
[340570061,1729503054364,-4122.08,0.00016712,2]
[340570062,1729503054374,-500.0,0.00016712,2]
[340570063,1729503054383,-500.0,0.00016712,2]
[340570064,1729503054393,-515.71147005,0.00016712,2]
[340570065,1729503054403,-1370.56,0.00016712,2]
[340570066,1729503054413,-500.0,0.00016712,2]
[340570067,1729503054423,-500.0,0.00016712,2]
[340570068,1729503054433,-500.0,0.00016712,2]
[340570069,1729503054443,-1369.0,0.00016712,2]
[340570070,1729503054453,-2002.61,0.00016712,2]
[340570071,1729503054463,-500.0,0.00016712,2]
[340570072,1729503054473,-500.0,0.00016712,2]
[340570073,1729503054484,-500.0,0.00016712,2]
[340570074,1729503054494,-906.5,0.00016712,2]
[340570075,1729503054504,-500.0,0.00016712,2]
[340570076,1729503054514,-971.96,0.00016712,2]
[340570077,1729503054523,-500.0,0.00016712,2]
[340570078,1729503054533,-1800.07,0.00016712,2]
[340570079,1729503054543,-1594.49,0.00016712,2]
[340570080,1729503054554,-687.91,0.00016712,2]
[340570081,1729503054564,-500.0,0.00016712,2]
[340570082,1729503054575,-500.0,0.00016712,2]
[340570083,1729503054586,-500.0,0.00016712,2]
[340570084,1729503054597,-516.19,0.00016712,2]
[340570085,1729503054607,-500.0,0.00016712,2]
[340570086,1729503054619,-500.0,0.00016712,2]
[340570087,1729503054629,-8929.29,0.00016712,2]
[340570088,1729503054639,-500.0,0.00016712,2]
[340570089,1729503054649,-1049.53,0.00016712,2]
[340570090,1729503054659,-518.45321141,0.00016712,2]
[340570091,1729503054669,-1313.75,0.00016712,2]
[340570092,1729503054679,-683.57,0.00016712,2]
[340570093,1729503054689,-13797.46,0.00016712,2]
[340570094,1729503054699,-1545.31,0.00016712,2]
[340570095,1729503054708,-500.0,0.00016712,2]
[340570096,1729503054718,-520.7110136,0.00016712,2]
[340570097,1729503054728,-500.0,0.00016712,2]
[340570098,1729503054738,-500.0,0.00016712,2]
[340570099,1729503054748,-500.0,0.00016712,2]
[340570100,1729503054757,-689.3,0.00016712,2]
[340570101,1729503054767,-500.0,0.00016712,2]
[340570102,1729503054777,-500.0,0.00016712,2]
[340570103,1729503054787,-1936.64,0.00016712,2]
[340570104,1729503054797,-1006.26,0.00016712,2]
[340570105,1729503054807,-745.3,0.00016712,2]
[340570106,1729503054817,-841.98,0.00016712,2]
[340570107,1729503054826,-1709.37,0.00016712,2]
[340570108,1729503054837,-500.0,0.00016712,2]
[340570109,1729503054847,-500.0,0.00016712,2]
[340570110,1729503054857,-866.95,0.00016712,2]
[340570111,1729503054867,-500.0,0.00016712,2]
[340570112,1729503054877,-500.0,0.00016712,2]
[340570113,1729503054888,-500.0,0.00016712,2]
[340570114,1729503054899,-732.71,0.00016712,2]
[340570115,1729503054909,-2307.79,0.00016712,2]
[340570116,1729503054920,-500.0,0.00016712,2]
[340570117,1729503054930,-6012.07,0.00016712,2]
[340570118,1729503054939,-478.16443585,0.00016712,2]
[340570119,1729503054949,-1407.19,0.00016712,2]
[340570120,1729503054959,-500.0,0.00016712,2]
[340570121,1729503054970,-5021.35,0.00016712,2]
[340570122,1729503054980,-617.51,0.00016712,2]
[340570123,1729503054990,-500.0,0.00016712,2]
[340570124,1729503054999,-895.95,0.00016712,2]
[340570125,1729503055010,-500.0,0.00016712,2]
[340570126,1729503055020,-1973.98,0.00016712,2]
[340570127,1729503055031,-2082.3,0.00016712,2]
[340570128,1729503055041,-1163.08,0.00016712,2]
[340570129,1729503055052,-2369.27,0.00016712,2]
[340570130,1729503055062,-500.0,0.00016712,2]
[340570131,1729503055073,-1412.76,0.00016712,2]
[340570132,1729503055083,-500.0,0.00016712,2]
[340570133,1729503055094,-952.16,0.00016712,2]
[340570134,1729503055103,-1414.82,0.00016712,2]
[340570135,1729503055113,-1414.49,0.00016712,2]
[340570136,1729503055122,-500.0,0.00016712,2]
[340570137,1729503055132,-500.0,0.00016712,2]
[340570138,1729503055142,-1773.47,0.00016712,2]
[340570139,1729503055152,-779.6,0.00016712,2]
[340570140,1729503055162,-500.0,0.00016712,2]
[340570141,1729503055172,-2909.78,0.00016712,2]
[340570142,1729503055185,-500.0,0.00016712,2]
[340570143,1729503055194,-500.0,0.00016712,2]
[340570144,1729503055203,-500.0,0.00016712,2]
[340570145,1729503055213,-3617.06,0.00016712,2]
[340570146,1729503055224,-1444.85,0.00016712,2]
[340570147,1729503055235,-1020.97,0.00016712,2]
[340570148,1729503055245,-1542.86,0.00016712,2]
[340570149,1729503055256,-780.5,0.00016712,2]
[340570150,1729503055265,-1808.93,0.00016712,2]
[340570151,1729503055274,-500.0,0.00016712,2]
[340570152,1729503055284,-2841.12,0.00016712,2]
[340570153,1729503055293,-2398.99,0.00016712,2]
[340570154,1729503055303,-959.85,0.00016712,2]
[340570155,1729503055312,-500.0,0.00016712,2]
[340570156,1729503055322,-500.0,0.00016712,2]
[340570157,1729503055332,-1613.0,0.00016712,2]
[340570158,1729503055341,-1006.63,0.00016712,2]
[340570159,1729503055351,-493.22837232,0.00016712,2]
[340570160,1729503055360,-500.0,0.00016712,2]
[340570161,1729503055369,-897.98,0.00016712,2]
[340570162,1729503055379,-631.92,0.00016712,2]
[340570163,1729503055388,-1961.2,0.00016712,2]
[340570164,1729503055398,-243.10487284,0.00016712,2]
[340570165,1729503055408,-151.0,0.00016712,2]
[340570166,1729503055417,-271.612265,0.00016712,2]
[340570167,1729503055624,-500.0,0.00016712,2]
[340570168,1729503055638,-727.17,0.00016712,2]
[340570169,1729503055648,-1571.76,0.00016712,2]
[340570170,1729503055658,-500.0,0.00016712,2]
[340570171,1729503055668,-2232.37,0.00016712,2]
[340570172,1729503055677,-549.24,0.00016712,2]
[340570173,1729503055687,-742.56,0.00016712,2]
[340570174,1729503055696,-500.0,0.00016712,2]
[340570175,1729503055705,-1308.32,0.00016712,2]
[340570176,1729503055715,-736.33,0.00016712,2]
[340570177,1729503055726,-16824.17,0.00016712,2]
[340570178,1729503055736,-512.29,0.00016712,2]
[340570179,1729503055746,-734.52,0.00016712,2]
[340570180,1729503055755,-643.45,0.00016712,2]
[340570181,1729503055765,-50302.14,0.00016712,2]
[340570182,1729503055775,-2417.76,0.00016712,2]
[340570183,1729503055784,-500.0,0.00016712,2]
[340570184,1729503055794,-500.0,0.00016712,2]
[340570185,1729503055803,-500.0,0.00016712,2]
[340570186,1729503055812,-500.0,0.00016712,2]
[340570187,1729503055822,-1956.84,0.00016712,2]
[340570188,1729503055832,-500.0,0.00016712,2]
[340570189,1729503055842,-2340.53,0.00016712,2]
[340570190,1729503055851,-2166.31,0.00016712,2]
[340570191,1729503055860,-500.0,0.00016712,2]
[340570192,1729503055870,-8938.61,0.00016712,2]
[340570193,1729503055879,-500.0,0.00016712,2]
[340570194,1729503055889,-586.74,0.00016712,2]
[340570195,1729503055899,-916.12,0.00016712,2]
[340570196,1729503055908,-500.0,0.00016712,2]
[340570197,1729503055918,-500.0,0.00016712,2]
[340570198,1729503055928,-500.0,0.00016712,2]
[340570199,1729503055938,-500.0,0.00016712,2]
[340570200,1729503055947,-958.88,0.00016712,2]
[340570201,1729503055957,-500.0,0.00016712,2]
[340570202,1729503055966,-500.0,0.00016712,2]
[340570203,1729503055976,-1275.84,0.00016712,2]
[340570204,1729503055985,-2169.62,0.00016712,2]
[340570205,1729503055995,-2260.42,0.00016712,2]
[340570206,1729503056004,-500.0,0.00016712,2]
[340570207,1729503056015,-644.91,0.00016712,2]
[340570208,1729503056025,-500.0,0.00016712,2]
[340570209,1729503056035,-650.43,0.00016712,2]
[340570210,1729503056044,-500.0,0.00016712,2]
[340570211,1729503056054,-500.0,0.00016712,2]
[340570212,1729503056064,-500.0,0.00016712,2]
[340570213,1729503056075,-1845.52,0.00016712,2]
[340570214,1729503056086,-500.0,0.00016712,2]
[340570215,1729503056097,-1838.23,0.00016712,2]
[340570216,1729503056106,-749.99,0.00016712,2]
[340570217,1729503056116,-1040.62,0.00016712,2]
[340570218,1729503056126,-500.0,0.00016712,2]
[340570219,1729503056136,-500.0,0.00016773,2]
[340570220,1729503056145,-500.0,0.00016773,2]
[340570221,1729503056155,-500.0,0.00016773,2]
[340570222,1729503056166,-500.0,0.00016773,2]
[340570223,1729503056175,-300.55689447,0.00016773,2]
[340570224,1729503056189,-500.0,0.00016773,2]
[340570225,1729503056199,-500.0,0.00016773,2]
[340570226,1729503056209,-12464.3826917,0.00016838,2]
[340570227,1729503056219,-739.6224018,0.0001689,2]
[340570228,1729503056231,-500.0,0.00016973,2]
[340570229,1729503056241,-500.0,0.00016975,2]
[340570230,1729503056251,-112179.444225,0.00016976,2]
[340570231,1729503056263,-500.0,0.00016986,2]
[340570232,1729503056274,-500.0,0.00016986,2]
[340570233,1729503056284,-399.2030634,0.00016986,2]
[340570234,1729503056294,-381.49505261,0.00016986,2]
[340570235,1729503056304,-500.0,0.00016986,2]
[340570236,1729503056313,-500.0,0.00016986,2]
[340570237,1729503056323,-519.17851303,0.00016986,2]
[340570238,1729503056334,-500.0,0.00016986,2]
[340570239,1729503056344,-600.20028046,0.00016986,2]
[340570240,1729503056353,-500.0,0.00016986,2]
[340570241,1729503056362,-299.20465351,0.00016986,2]
[340570242,1729503056372,-500.0,0.00016986,2]
[340570243,1729503056381,-500.0,0.00016986,2]
[340570244,1729503056391,-500.0,0.00016986,2]
[340570245,1729503056401,-500.0,0.00016986,2]
[340570246,1729503056411,-500.0,0.00016986,2]
[340570247,1729503056421,-500.0,0.00016986,2]
[340570248,1729503056430,-500.0,0.00016986,2]
[340570249,1729503056440,-1590.63,0.00016986,2]
[340570250,1729503056449,-500.0,0.00016986,2]
[340570251,1729503056459,-1571.14,0.00016986,2]
[340570252,1729503056469,-500.0,0.00016986,2]
[340570253,1729503056479,-500.0,0.00016986,2]
[340570254,1729503056488,-500.0,0.00016986,2]
[340570255,1729503056498,-434.94224412,0.00016986,2]
[340570256,1729503056508,-500.0,0.00016986,2]
[340570257,1729503056517,-500.0,0.00016986,2]
[340570258,1729503056528,-2255.98,0.00016986,2]
[340570259,1729503056537,-557.10940043,0.00016986,2]
[340570260,1729503056546,-500.0,0.00016986,2]
[340570261,1729503056557,-500.0,0.00016986,2]
[340570262,1729503056567,-1525.69,0.00016986,2]
[340570263,1729503056576,-500.0,0.00016986,2]
[340570264,1729503056590,-241.41665915,0.00016986,2]
[340570265,1729503056600,-500.0,0.00016986,2]
[340570266,1729503056609,-370.06861828,0.00016986,2]
[340570267,1729503056619,-799.62,0.00016986,2]
[340570268,1729503056628,-500.0,0.00016986,2]
[340570269,1729503056638,-348.14159679,0.00016986,2]
[340570270,1729503056648,-500.0,0.00016986,2]
[340570271,1729503056658,-1706.82,0.00016986,2]
[340570272,1729503056668,-507.59457642,0.00016986,2]
[340570273,1729503056678,-639.56029238,0.00016986,2]
[340570274,1729503056687,-500.0,0.00016986,2]
[340570275,1729503056697,-500.0,0.00016986,2]
[340570276,1729503056707,-500.0,0.00016986,2]
[340570277,1729503056717,-500.0,0.00016986,2]
[340570278,1729503056726,-500.0,0.00016986,2]
[340570279,1729503056736,-554.07233275,0.00016986,2]